[Event "Titled Tuesday Blitz November 01 Early 2022"]
[White "Deac, Bogdan-Daniel"]
[Black "Al Hosani, Omran"]
[WhiteFideId "1226380"]
[BlackFideId "9308733"]
[WhiteElo "2648"]
[BlackElo "2167"]
[Result "1-0"]
[Round "02"]
[TimeControl "180+1"]
[Date "2022.11.01"]
[WhiteClock "0:00:12"]
[BlackClock "0:00:04"]

1. Nf3 {[%clk 0:03:00]}  Nf6 {[%clk 0:02:59]} 2. g3 {[%clk 0:03:01]}  d5 {[%clk 0:02:57]} 3. Bg2 {[%clk 0:03:00]}  Bf5 {[%clk 0:02:58]} 4. c4 {[%clk 0:03:00]}  e6 {[%clk 0:02:57]} 5. cxd5 {[%clk 0:02:59]}  exd5 {[%clk 0:02:57]} 6. Qb3 {[%clk 0:02:59]}  Qc8 {[%clk 0:02:39]} 7. Nc3 {[%clk 0:02:53]}  c6 {[%clk 0:02:38]} 8. d3 {[%clk 0:02:53]}  Be7 {[%clk 0:02:37]} 9. Nd4 {[%clk 0:02:44]}  Bd7 {[%clk 0:02:36]} 10. e4 {[%clk 0:02:44]}  dxe4 {[%clk 0:02:28]} 11. dxe4 {[%clk 0:02:45]}  O-O {[%clk 0:02:27]} 12. O-O {[%clk 0:02:44]}  Na6 {[%clk 0:02:26]} 13. f3 {[%clk 0:02:25]}  Bc5 {[%clk 0:02:17]} 14. Be3 {[%clk 0:02:25]}  Be6 {[%clk 0:02:18]} 15. Qc2 {[%clk 0:02:21]}  Rd8 {[%clk 0:02:13]} 16. Rfd1 {[%clk 0:02:17]}  Nb4 {[%clk 0:02:09]} 17. Qe2 {[%clk 0:02:14]}  a5 {[%clk 0:01:42]} 18. a3 {[%clk 0:02:03]}  Na6 {[%clk 0:01:42]} 19. Rac1 {[%clk 0:02:02]}  Bh3 {[%clk 0:01:34]} 20. Na4 {[%clk 0:01:38]}  Ba7 {[%clk 0:01:19]} 21. Bxh3 {[%clk 0:01:10]}  Qxh3 {[%clk 0:01:20]} 22. Nf5 {[%clk 0:01:10]}  Bxe3+ {[%clk 0:01:04]} 23. Qxe3 {[%clk 0:01:10]}  Qh5 {[%clk 0:00:39]} 24. Qf4 {[%clk 0:01:04]}  Re8 {[%clk 0:00:25]} 25. Kg2 {[%clk 0:00:41]}  Qg6 {[%clk 0:00:15]} 26. Rd6 {[%clk 0:00:34]}  Nh5 {[%clk 0:00:13]} 27. Qh4 {[%clk 0:00:25]}  Nf6 {[%clk 0:00:06]} 28. Rcd1 {[%clk 0:00:24]}  h6 {[%clk 0:00:06]} 29. Nb6 {[%clk 0:00:23]}  Rab8 {[%clk 0:00:05]} 30. Nd7 {[%clk 0:00:19]}  Nxd7 {[%clk 0:00:05]} 31. Rxg6 {[%clk 0:00:13]}  fxg6 {[%clk 0:00:06]} 32. Nxh6+ {[%clk 0:00:13]}  gxh6 {[%clk 0:00:05]} 33. Rxd7 {[%clk 0:00:14]}  Nc5 {[%clk 0:00:03]} 34. Rd6 {[%clk 0:00:14]}  Ne6 {[%clk 0:00:04]} 35. Qxh6 {[%clk 0:00:11]}  Nf8 {[%clk 0:00:04]} 36. Qg5 {[%clk 0:00:11]}  Rbc8 {[%clk 0:00:03]} 37. h4 {[%clk 0:00:10]}  Rc7 {[%clk 0:00:04]} 38. h5 {[%clk 0:00:11]}  Rg7 {[%clk 0:00:03]} 39. hxg6 {[%clk 0:00:11]}  Ne6 {[%clk 0:00:04]} 40. Rxe6 {[%clk 0:00:11]}  Rxe6 {[%clk 0:00:04]} 41. Qd8+ {[%clk 0:00:12]} 1-0


[Site "https://www.chess.com"]

[Event "Titled Tuesday Blitz November 01 Early 2022"]
[White "Devaev, Alexander"]
[Black "Iliaguev, Nisim"]
[WhiteFideId "4169395"]
[BlackFideId "2817276"]
[WhiteElo "2225"]
[BlackElo "2264"]
[Result "0-1"]
[Round "02"]
[TimeControl "180+1"]
[Date "2022.11.02"]
[WhiteClock "0:00:10"]
[BlackClock "0:01:16"]

1. Nf3 {[%clk 0:03:00]}  g6 {[%clk 0:02:58]} 2. d4 {[%clk 0:03:00]}  Bg7 {[%clk 0:02:58]} 3. c4 {[%clk 0:03:01]}  d6 {[%clk 0:02:58]} 4. h3 {[%clk 0:03:01]}  Nf6 {[%clk 0:02:58]} 5. Nc3 {[%clk 0:03:00]}  O-O {[%clk 0:02:58]} 6. e4 {[%clk 0:03:01]}  c5 {[%clk 0:02:59]} 7. d5 {[%clk 0:03:01]}  e6 {[%clk 0:02:59]} 8. Bd3 {[%clk 0:03:02]}  exd5 {[%clk 0:02:59]} 9. cxd5 {[%clk 0:03:03]}  Re8 {[%clk 0:03:00]} 10. O-O {[%clk 0:03:03]}  a6 {[%clk 0:03:00]} 11. a4 {[%clk 0:03:03]}  Qc7 {[%clk 0:03:01]} 12. Re1 {[%clk 0:03:02]}  Nbd7 {[%clk 0:03:02]} 13. Bf4 {[%clk 0:03:03]}  c4 {[%clk 0:03:01]} 14. Bc2 {[%clk 0:03:02]}  Nh5 {[%clk 0:02:57]} 15. Be3 {[%clk 0:02:41]}  Ne5 {[%clk 0:02:56]} 16. Nd4 {[%clk 0:02:30]}  Bd7 {[%clk 0:02:45]} 17. f4 {[%clk 0:02:24]}  Nd3 {[%clk 0:02:45]} 18. Bxd3 {[%clk 0:02:25]}  cxd3 {[%clk 0:02:46]} 19. Qxd3 {[%clk 0:02:25]}  Rac8 {[%clk 0:02:43]} 20. Rac1 {[%clk 0:02:11]}  Qc4 {[%clk 0:02:42]} 21. Qd2 {[%clk 0:02:11]}  Bxd4 {[%clk 0:02:34]} 22. Bxd4 {[%clk 0:01:49]}  Nxf4 {[%clk 0:02:33]} 23. Red1 {[%clk 0:01:12]}  g5 {[%clk 0:02:17]} 24. h4 {[%clk 0:01:06]}  Bxa4 {[%clk 0:02:09]} 25. Nxa4 {[%clk 0:00:25]}  Qxa4 {[%clk 0:01:57]} 26. Rxc8 {[%clk 0:00:23]}  Rxc8 {[%clk 0:01:56]} 27. hxg5 {[%clk 0:00:15]}  Qxd4+ {[%clk 0:01:47]} 28. Qxd4 {[%clk 0:00:15]}  Ne2+ {[%clk 0:01:48]} 29. Kh2 {[%clk 0:00:14]}  Nxd4 {[%clk 0:01:49]} 30. Rxd4 {[%clk 0:00:15]}  Kf8 {[%clk 0:01:47]} 31. Kg3 {[%clk 0:00:12]}  Ke7 {[%clk 0:01:47]} 32. b4 {[%clk 0:00:13]}  b5 {[%clk 0:01:45]} 33. Rd2 {[%clk 0:00:10]}  Rc4 {[%clk 0:01:43]} 34. Ra2 {[%clk 0:00:10]}  Rxb4 {[%clk 0:01:40]} 35. Rxa6 {[%clk 0:00:11]}  Rxe4 {[%clk 0:01:41]} 36. Ra7+ {[%clk 0:00:12]}  Kf8 {[%clk 0:01:37]} 37. Rb7 {[%clk 0:00:10]}  b4 {[%clk 0:01:35]} 38. Rb6 {[%clk 0:00:07]}  Ke7 {[%clk 0:01:35]} 39. Rb7+ {[%clk 0:00:07]}  Ke8 {[%clk 0:01:33]} 40. Rb8+ {[%clk 0:00:07]}  Kd7 {[%clk 0:01:34]} 41. Rb7+ {[%clk 0:00:08]}  Kc8 {[%clk 0:01:34]} 42. Rxf7 {[%clk 0:00:09]}  b3 {[%clk 0:01:34]} 43. Rf2 {[%clk 0:00:09]}  Rb4 {[%clk 0:01:31]} 44. Rb2 {[%clk 0:00:09]}  Kc7 {[%clk 0:01:32]} 45. Kf3 {[%clk 0:00:09]}  Kb6 {[%clk 0:01:32]} 46. Ke3 {[%clk 0:00:10]}  Kc5 {[%clk 0:01:33]} 47. Kd3 {[%clk 0:00:11]}  Kxd5 {[%clk 0:01:33]} 48. Kc3 {[%clk 0:00:11]}  Rb8 {[%clk 0:01:33]} 49. Rd2+ {[%clk 0:00:12]}  Ke5 {[%clk 0:01:34]} 50. Kb2 {[%clk 0:00:13]}  d5 {[%clk 0:01:34]} 51. Rf2 {[%clk 0:00:12]}  d4 {[%clk 0:01:34]} 52. Rf7 {[%clk 0:00:12]}  d3 {[%clk 0:01:23]} 53. Rxh7 {[%clk 0:00:12]}  Rd8 {[%clk 0:01:17]} 54. Rh1 {[%clk 0:00:12]}  d2 {[%clk 0:01:16]} 55. Rd1 {[%clk 0:00:11]}  Ke4 {[%clk 0:01:17]} 56. g6 {[%clk 0:00:11]}  Ke3 {[%clk 0:01:17]} 57. Kxb3 {[%clk 0:00:11]}  Ke2 {[%clk 0:01:16]} 58. Rh1 {[%clk 0:00:10]}  d1=Q+ {[%clk 0:01:16]} 0-1


[Site "https://www.chess.com"]

[Event "Titled Tuesday Blitz November 01 Early 2022"]
[White "Dominguez Perez, Leinier"]
[Black "Darini, Pouria"]
[WhiteFideId "3503240"]
[BlackFideId "12502200"]
[WhiteElo "2647"]
[BlackElo "2483"]
[Result "1-0"]
[Round "02"]
[TimeControl "180+1"]
[Date "2022.11.01"]
[WhiteClock "0:01:08"]
[BlackClock "0:00:01"]

1. e4 {[%clk 0:03:00]}  c5 {[%clk 0:02:59]} 2. Nf3 {[%clk 0:03:00]}  Nc6 {[%clk 0:02:58]} 3. d4 {[%clk 0:03:01]}  cxd4 {[%clk 0:02:58]} 4. Nxd4 {[%clk 0:03:02]}  Nf6 {[%clk 0:02:59]} 5. Nc3 {[%clk 0:03:02]}  d6 {[%clk 0:02:59]} 6. Bg5 {[%clk 0:03:01]}  e6 {[%clk 0:02:58]} 7. Qd2 {[%clk 0:03:01]}  a6 {[%clk 0:02:54]} 8. O-O-O {[%clk 0:03:01]}  Bd7 {[%clk 0:02:54]} 9. f3 {[%clk 0:03:00]}  Be7 {[%clk 0:02:45]} 10. Be3 {[%clk 0:02:59]}  b5 {[%clk 0:02:30]} 11. g4 {[%clk 0:02:55]}  Nxd4 {[%clk 0:02:13]} 12. Qxd4 {[%clk 0:02:41]}  e5 {[%clk 0:02:03]} 13. Qd2 {[%clk 0:02:40]}  h6 {[%clk 0:01:54]} 14. Kb1 {[%clk 0:02:32]}  Be6 {[%clk 0:01:36]} 15. h4 {[%clk 0:02:26]}  Rc8 {[%clk 0:01:17]} 16. Be2 {[%clk 0:01:47]}  Qa5 {[%clk 0:00:28]} 17. g5 {[%clk 0:01:46]}  b4 {[%clk 0:00:19]} 18. Nd5 {[%clk 0:01:41]}  Nxd5 {[%clk 0:00:19]} 19. exd5 {[%clk 0:01:41]}  Bf5 {[%clk 0:00:20]} 20. Bd3 {[%clk 0:01:42]}  Bxd3 {[%clk 0:00:20]} 21. Qxd3 {[%clk 0:01:43]}  Qb5 {[%clk 0:00:14]} 22. Qf5 {[%clk 0:01:23]}  Qd7 {[%clk 0:00:10]} 23. Qe4 {[%clk 0:01:23]}  a5 {[%clk 0:00:08]} 24. f4 {[%clk 0:01:16]}  f5 {[%clk 0:00:02]} 25. gxf6 {[%clk 0:01:15]}  Bxf6 {[%clk 0:00:03]} 26. fxe5 {[%clk 0:01:13]}  Bxe5 {[%clk 0:00:04]} 27. Rhf1 {[%clk 0:01:11]}  Qe7 {[%clk 0:00:02]} 28. Qg6+ {[%clk 0:01:09]}  Kd8 {[%clk 0:00:02]} 29. Bb6+ {[%clk 0:01:08]}  Rc7 {[%clk 0:00:01]} 30. Rf7 {[%clk 0:01:08]} 1-0


[Site "https://www.chess.com"]

[Event "Titled Tuesday Blitz November 01 Early 2022"]
[White "Donchenko, Alexander"]
[Black "Dushyant Sharma"]
[WhiteFideId "24603295"]
[BlackFideId "25065130"]
[WhiteElo "2572"]
[BlackElo "2270"]
[Result "1/2-1/2"]
[Round "02"]
[TimeControl "180+1"]
[Date "2022.11.01"]
[WhiteClock "0:00:05"]
[BlackClock "0:00:13"]

1. Nf3 {[%clk 0:03:00]}  d5 {[%clk 0:02:59]} 2. g3 {[%clk 0:03:00]}  e6 {[%clk 0:03:00]} 3. Bg2 {[%clk 0:03:00]}  Nf6 {[%clk 0:03:01]} 4. O-O {[%clk 0:03:01]}  Be7 {[%clk 0:03:02]} 5. c4 {[%clk 0:03:01]}  O-O {[%clk 0:03:03]} 6. d4 {[%clk 0:03:01]}  dxc4 {[%clk 0:03:03]} 7. Qc2 {[%clk 0:03:01]}  c5 {[%clk 0:03:04]} 8. dxc5 {[%clk 0:03:00]}  Nc6 {[%clk 0:03:04]} 9. Nbd2 {[%clk 0:02:57]}  e5 {[%clk 0:02:58]} 10. Rd1 {[%clk 0:02:54]}  Bxc5 {[%clk 0:02:42]} 11. Nxc4 {[%clk 0:02:50]}  Qe7 {[%clk 0:02:40]} 12. Bg5 {[%clk 0:02:46]}  Nd4 {[%clk 0:02:29]} 13. Nxd4 {[%clk 0:02:44]}  exd4 {[%clk 0:02:30]} 14. Rac1 {[%clk 0:02:35]}  h6 {[%clk 0:02:22]} 15. Bxf6 {[%clk 0:02:22]}  Qxf6 {[%clk 0:02:23]} 16. Nd2 {[%clk 0:02:22]}  Bb6 {[%clk 0:02:10]} 17. Nb3 {[%clk 0:02:18]}  Bf5 {[%clk 0:01:59]} 18. Qd2 {[%clk 0:02:13]}  Rad8 {[%clk 0:01:56]} 19. Bxb7 {[%clk 0:02:11]}  d3 {[%clk 0:01:51]} 20. exd3 {[%clk 0:02:06]}  Bxd3 {[%clk 0:01:50]} 21. Nc5 {[%clk 0:01:40]}  Bxc5 {[%clk 0:01:18]} 22. Rxc5 {[%clk 0:01:41]}  Be4 {[%clk 0:01:17]} 23. Qxd8 {[%clk 0:01:24]}  Rxd8 {[%clk 0:01:12]} 24. Rxd8+ {[%clk 0:01:25]}  Qxd8 {[%clk 0:01:13]} 25. Rc8 {[%clk 0:01:23]}  Qxc8 {[%clk 0:01:07]} 26. Bxc8 {[%clk 0:01:24]}  Bd5 {[%clk 0:01:05]} 27. a3 {[%clk 0:01:24]}  f6 {[%clk 0:01:02]} 28. f4 {[%clk 0:01:22]}  Kf7 {[%clk 0:01:02]} 29. Kf2 {[%clk 0:01:23]}  Ke7 {[%clk 0:01:03]} 30. Ke3 {[%clk 0:01:23]}  Kd6 {[%clk 0:01:03]} 31. Kd4 {[%clk 0:01:23]}  Bb3 {[%clk 0:00:57]} 32. Bf5 {[%clk 0:01:22]}  Ba2 {[%clk 0:00:49]} 33. b4 {[%clk 0:01:20]}  Kc6 {[%clk 0:00:41]} 34. Bd3 {[%clk 0:01:15]}  Be6 {[%clk 0:00:39]} 35. a4 {[%clk 0:01:12]}  Bb3 {[%clk 0:00:37]} 36. a5 {[%clk 0:01:10]}  Be6 {[%clk 0:00:33]} 37. h4 {[%clk 0:01:07]}  Kd6 {[%clk 0:00:30]} 38. Bc4 {[%clk 0:01:00]}  Bc8 {[%clk 0:00:27]} 39. b5 {[%clk 0:00:59]}  Bb7 {[%clk 0:00:23]} 40. Bd3 {[%clk 0:00:57]}  Bf3 {[%clk 0:00:23]} 41. Be4 {[%clk 0:00:56]}  Be2 {[%clk 0:00:22]} 42. b6 {[%clk 0:00:55]}  axb6 {[%clk 0:00:20]} 43. axb6 {[%clk 0:00:56]}  Ba6 {[%clk 0:00:20]} 44. Bd5 {[%clk 0:00:46]}  Bf1 {[%clk 0:00:15]} 45. b7 {[%clk 0:00:38]}  Kc7 {[%clk 0:00:15]} 46. Bc6 {[%clk 0:00:37]}  Bh3 {[%clk 0:00:14]} 47. Kd5 {[%clk 0:00:36]}  Bg2+ {[%clk 0:00:14]} 48. Kc5 {[%clk 0:00:35]}  Bxc6 {[%clk 0:00:15]} 49. b8=Q+ {[%clk 0:00:35]}  Kxb8 {[%clk 0:00:16]} 50. Kxc6 {[%clk 0:00:36]}  Kc8 {[%clk 0:00:16]} 51. Kd6 {[%clk 0:00:36]}  Kd8 {[%clk 0:00:17]} 52. Ke6 {[%clk 0:00:36]}  Ke8 {[%clk 0:00:17]} 53. Kf5 {[%clk 0:00:19]}  Kf7 {[%clk 0:00:17]} 54. h5 {[%clk 0:00:20]}  Kg8 {[%clk 0:00:13]} 55. Kg6 {[%clk 0:00:21]}  Kh8 {[%clk 0:00:14]} 56. Kf7 {[%clk 0:00:07]}  Kh7 {[%clk 0:00:12]} 57. Kf8 {[%clk 0:00:07]}  Kh8 {[%clk 0:00:12]} 58. g4 {[%clk 0:00:06]}  Kh7 {[%clk 0:00:12]} 59. Kf7 {[%clk 0:00:06]}  Kh8 {[%clk 0:00:12]} 60. f5 {[%clk 0:00:04]}  Kh7 {[%clk 0:00:12]} 61. Kf8 {[%clk 0:00:04]}  Kh8 {[%clk 0:00:13]} 62. Kf7 {[%clk 0:00:04]}  Kh7 {[%clk 0:00:12]} 63. Kf8 {[%clk 0:00:05]}  Kh8 {[%clk 0:00:13]} 64. Kf7 {[%clk 0:00:05]} 1/2-1/2


[Site "https://www.chess.com"]

[Event "Titled Tuesday Blitz November 01 Early 2022"]
[White "Espinosa Aranda, Angel"]
[Black "Balkum, Alexander"]
[WhiteFideId "2278189"]
[BlackFideId "2005069"]
[WhiteElo "2478"]
[BlackElo "2332"]
[Result "1-0"]
[Round "02"]
[TimeControl "180+1"]
[Date "2022.11.02"]
[WhiteClock "0:01:09"]
[BlackClock "0:00:45"]

1. e4 {[%clk 0:03:00]}  c5 {[%clk 0:02:59]} 2. Nf3 {[%clk 0:03:01]}  Nc6 {[%clk 0:02:59]} 3. d4 {[%clk 0:02:59]}  cxd4 {[%clk 0:02:59]} 4. Nxd4 {[%clk 0:03:00]}  Nf6 {[%clk 0:02:59]} 5. Nc3 {[%clk 0:03:01]}  d6 {[%clk 0:03:00]} 6. Bg5 {[%clk 0:03:00]}  e6 {[%clk 0:03:00]} 7. Bb5 {[%clk 0:03:00]}  Qb6 {[%clk 0:02:36]} 8. Qd3 {[%clk 0:02:55]}  Bd7 {[%clk 0:02:33]} 9. Be3 {[%clk 0:02:45]}  Qc7 {[%clk 0:02:34]} 10. O-O-O {[%clk 0:02:42]}  a6 {[%clk 0:02:25]} 11. Bxc6 {[%clk 0:02:40]}  bxc6 {[%clk 0:02:20]} 12. h3 {[%clk 0:02:33]}  d5 {[%clk 0:02:04]} 13. Nb3 {[%clk 0:02:25]}  Bb4 {[%clk 0:01:50]} 14. a3 {[%clk 0:02:17]}  Bxc3 {[%clk 0:01:46]} 15. Qxc3 {[%clk 0:02:18]}  O-O {[%clk 0:01:46]} 16. e5 {[%clk 0:02:04]}  Ne4 {[%clk 0:01:35]} 17. Qd4 {[%clk 0:01:58]}  Rab8 {[%clk 0:01:29]} 18. f3 {[%clk 0:01:43]}  Ng3 {[%clk 0:01:29]} 19. Rhe1 {[%clk 0:01:43]}  Nf5 {[%clk 0:01:29]} 20. Qc3 {[%clk 0:01:43]}  Rxb3 {[%clk 0:01:05]} 21. cxb3 {[%clk 0:01:34]}  Nxe3 {[%clk 0:01:05]} 22. Qxe3 {[%clk 0:01:32]}  c5 {[%clk 0:01:05]} 23. Kb1 {[%clk 0:01:32]}  Rb8 {[%clk 0:01:04]} 24. Rc1 {[%clk 0:01:33]}  c4 {[%clk 0:00:56]} 25. bxc4 {[%clk 0:01:28]}  Qb7 {[%clk 0:00:56]} 26. Qc3 {[%clk 0:01:26]}  dxc4 {[%clk 0:00:54]} 27. Red1 {[%clk 0:01:26]}  Bc6 {[%clk 0:00:54]} 28. Qb4 {[%clk 0:01:18]}  Bd5 {[%clk 0:00:45]} 29. Qxb7 {[%clk 0:01:16]}  Rxb7 {[%clk 0:00:45]} 30. Rxc4 {[%clk 0:01:09]} 1-0


[Site "https://www.chess.com"]

[Event "Titled Tuesday Blitz November 01 Early 2022"]
[White "Fernandez De La Vara, Arnaldo"]
[Black "Yeritsyan, Hayk"]
[WhiteFideId "3518388"]
[BlackFideId "13307320"]
[WhiteElo "2387"]
[BlackElo "2410"]
[Result "1-0"]
[Round "02"]
[TimeControl "180+1"]
[Date "2022.11.02"]
[WhiteClock "0:01:19"]
[BlackClock "0:00:17"]

1. Nf3 {[%clk 0:03:00]}  d5 {[%clk 0:02:59]} 2. c4 {[%clk 0:02:59]}  c6 {[%clk 0:02:59]} 3. g3 {[%clk 0:02:57]}  Nf6 {[%clk 0:02:59]} 4. Bg2 {[%clk 0:02:58]}  Bf5 {[%clk 0:03:00]} 5. O-O {[%clk 0:02:57]}  e6 {[%clk 0:03:00]} 6. Qb3 {[%clk 0:02:55]}  Qb6 {[%clk 0:03:00]} 7. d3 {[%clk 0:02:55]}  Nbd7 {[%clk 0:02:53]} 8. cxd5 {[%clk 0:02:55]}  Qxb3 {[%clk 0:02:51]} 9. axb3 {[%clk 0:02:55]}  cxd5 {[%clk 0:02:51]} 10. Nd4 {[%clk 0:02:56]}  Bg6 {[%clk 0:02:51]} 11. Nb5 {[%clk 0:02:56]}  Kd8 {[%clk 0:02:28]} 12. Nxa7 {[%clk 0:02:37]}  Bc5 {[%clk 0:02:15]} 13. Be3 {[%clk 0:02:24]}  d4 {[%clk 0:02:10]} 14. Nc6+ {[%clk 0:02:24]}  Kc7 {[%clk 0:01:35]} 15. Rxa8 {[%clk 0:02:25]}  Rxa8 {[%clk 0:01:31]} 16. Nxd4 {[%clk 0:02:25]}  Nd5 {[%clk 0:01:20]} 17. Bxd5 {[%clk 0:02:16]}  Bxd4 {[%clk 0:01:14]} 18. Bxd4 {[%clk 0:02:15]}  exd5 {[%clk 0:01:14]} 19. Nc3 {[%clk 0:02:13]}  Kd6 {[%clk 0:01:10]} 20. Rc1 {[%clk 0:02:08]}  f6 {[%clk 0:00:56]} 21. Kg2 {[%clk 0:01:54]}  Ra5 {[%clk 0:00:43]} 22. b4 {[%clk 0:01:53]}  Ra8 {[%clk 0:00:38]} 23. Nb5+ {[%clk 0:01:47]}  Ke7 {[%clk 0:00:37]} 24. Nc7 {[%clk 0:01:47]}  Rc8 {[%clk 0:00:29]} 25. Nxd5+ {[%clk 0:01:47]}  Kd8 {[%clk 0:00:29]} 26. Rxc8+ {[%clk 0:01:38]}  Kxc8 {[%clk 0:00:29]} 27. Ne7+ {[%clk 0:01:38]}  Kc7 {[%clk 0:00:26]} 28. Nxg6 {[%clk 0:01:39]}  hxg6 {[%clk 0:00:27]} 29. e4 {[%clk 0:01:36]}  Kc6 {[%clk 0:00:27]} 30. Kf3 {[%clk 0:01:27]}  Kb5 {[%clk 0:00:27]} 31. Bc3 {[%clk 0:01:27]}  Ne5+ {[%clk 0:00:22]} 32. Bxe5 {[%clk 0:01:19]}  fxe5 {[%clk 0:00:23]} 33. Ke3 {[%clk 0:01:20]}  Kxb4 {[%clk 0:00:24]} 34. d4 {[%clk 0:01:20]}  Kb5 {[%clk 0:00:16]} 35. dxe5 {[%clk 0:01:20]}  Kc5 {[%clk 0:00:17]} 36. f4 {[%clk 0:01:19]} 1-0


[Site "https://www.chess.com"]

[Event "Titled Tuesday Blitz November 01 Early 2022"]
[White "Gabdrakhmanov, Azat"]
[Black "Ibarra Jerez, Jose Carlos"]
[WhiteFideId "34189197"]
[BlackFideId "2226332"]
[WhiteElo "2233"]
[BlackElo "2627"]
[Result "0-1"]
[Round "02"]
[TimeControl "180+1"]
[Date "2022.11.01"]
[WhiteClock "0:00:08"]
[BlackClock "0:00:56"]

1. e4 {[%clk 0:03:00]}  c5 {[%clk 0:02:59]} 2. Nf3 {[%clk 0:03:00]}  e6 {[%clk 0:02:59]} 3. d4 {[%clk 0:03:00]}  cxd4 {[%clk 0:02:59]} 4. Nxd4 {[%clk 0:03:01]}  Bc5 {[%clk 0:03:00]} 5. Nb3 {[%clk 0:03:01]}  Bb6 {[%clk 0:03:00]} 6. Nc3 {[%clk 0:02:58]}  Ne7 {[%clk 0:02:59]} 7. Qf3 {[%clk 0:02:55]}  O-O {[%clk 0:02:58]} 8. Be3 {[%clk 0:02:55]}  f5 {[%clk 0:02:58]} 9. Bxb6 {[%clk 0:02:46]}  Qxb6 {[%clk 0:02:54]} 10. O-O-O {[%clk 0:02:32]}  fxe4 {[%clk 0:02:46]} 11. Qxe4 {[%clk 0:02:33]}  d5 {[%clk 0:02:46]} 12. Qh4 {[%clk 0:02:22]}  Ng6 {[%clk 0:02:40]} 13. Qh5 {[%clk 0:01:52]}  Rf5 {[%clk 0:02:26]} 14. Qh3 {[%clk 0:01:45]}  Qxf2 {[%clk 0:02:09]} 15. g3 {[%clk 0:01:05]}  Nc6 {[%clk 0:02:00]} 16. Bd3 {[%clk 0:01:03]}  Rf6 {[%clk 0:02:00]} 17. Rhf1 {[%clk 0:00:55]}  Qe3+ {[%clk 0:02:00]} 18. Kb1 {[%clk 0:00:55]}  e5 {[%clk 0:01:50]} 19. Qh5 {[%clk 0:00:49]}  Rxf1 {[%clk 0:01:35]} 20. Rxf1 {[%clk 0:00:50]}  Nce7 {[%clk 0:01:30]} 21. Nxd5 {[%clk 0:00:30]}  Nxd5 {[%clk 0:01:18]} 22. Bxg6 {[%clk 0:00:30]}  hxg6 {[%clk 0:01:18]} 23. Qxg6 {[%clk 0:00:30]}  Bh3 {[%clk 0:01:09]} 24. Qf7+ {[%clk 0:00:14]}  Kh7 {[%clk 0:01:09]} 25. Rd1 {[%clk 0:00:10]}  Nf6 {[%clk 0:01:05]} 26. a4 {[%clk 0:00:10]}  Bf5 {[%clk 0:01:01]} 27. g4 {[%clk 0:00:10]}  Bg6 {[%clk 0:00:59]} 28. Qe6 {[%clk 0:00:09]}  Re8 {[%clk 0:00:58]} 29. Qd6 {[%clk 0:00:08]}  Qxb3 {[%clk 0:00:56]} 0-1


[Site "https://www.chess.com"]

[Event "Titled Tuesday Blitz November 01 Early 2022"]
[White "Gokerkan, Cem Kaan"]
[Black "Bilan, Danila"]
[WhiteFideId "6336760"]
[BlackFideId "24161918"]
[WhiteElo "2365"]
[BlackElo "2203"]
[Result "1-0"]
[Round "02"]
[TimeControl "180+1"]
[Date "2022.11.02"]
[WhiteClock "0:00:25"]
[BlackClock "0:00:04"]

1. e4 {[%clk 0:03:00]}  c6 {[%clk 0:02:59]} 2. d4 {[%clk 0:02:54]}  d5 {[%clk 0:02:59]} 3. e5 {[%clk 0:02:55]}  c5 {[%clk 0:02:58]} 4. dxc5 {[%clk 0:02:53]}  e6 {[%clk 0:02:58]} 5. Be3 {[%clk 0:02:39]}  Qc7 {[%clk 0:02:55]} 6. b4 {[%clk 0:02:27]}  Qxe5 {[%clk 0:02:38]} 7. c3 {[%clk 0:02:27]}  Nf6 {[%clk 0:02:33]} 8. Nf3 {[%clk 0:02:27]}  Qc7 {[%clk 0:02:32]} 9. Na3 {[%clk 0:02:12]}  Bd7 {[%clk 0:01:38]} 10. Nb5 {[%clk 0:01:59]}  Bxb5 {[%clk 0:01:38]} 11. Bxb5+ {[%clk 0:02:00]}  Nc6 {[%clk 0:01:18]} 12. Qc1 {[%clk 0:01:55]}  Be7 {[%clk 0:01:05]} 13. Bf4 {[%clk 0:01:55]}  Qc8 {[%clk 0:01:05]} 14. O-O {[%clk 0:01:51]}  O-O {[%clk 0:01:01]} 15. Re1 {[%clk 0:01:51]}  Ne4 {[%clk 0:00:50]} 16. Bd3 {[%clk 0:01:48]}  f5 {[%clk 0:00:47]} 17. Rb1 {[%clk 0:01:34]}  Bf6 {[%clk 0:00:38]} 18. c4 {[%clk 0:01:34]}  Bc3 {[%clk 0:00:19]} 19. Bxe4 {[%clk 0:00:54]}  Bxe1 {[%clk 0:00:08]} 20. Bxd5 {[%clk 0:00:55]}  exd5 {[%clk 0:00:07]} 21. cxd5 {[%clk 0:00:56]}  Nxb4 {[%clk 0:00:03]} 22. Nxe1 {[%clk 0:00:38]}  Nxd5 {[%clk 0:00:03]} 23. Bd6 {[%clk 0:00:38]}  Re8 {[%clk 0:00:03]} 24. Qc4 {[%clk 0:00:39]}  Qe6 {[%clk 0:00:03]} 25. Nf3 {[%clk 0:00:37]}  Nf6 {[%clk 0:00:03]} 26. Qd4 {[%clk 0:00:26]}  Ne4 {[%clk 0:00:03]} 27. Rxb7 {[%clk 0:00:25]}  Nxd6 {[%clk 0:00:04]} 28. Qxg7# {[%clk 0:00:25]} 1-0


[Site "https://www.chess.com"]

[Event "Titled Tuesday Blitz November 01 Early 2022"]
[White "Goroshkov, Maksym"]
[Black "Maghsoodloo, Parham"]
[WhiteFideId "14142716"]
[BlackFideId "12539929"]
[WhiteElo "2257"]
[BlackElo "2676"]
[Result "1-0"]
[Round "02"]
[TimeControl "180+1"]
[Date "2022.11.01"]
[WhiteClock "0:01:17"]
[BlackClock "0:00:32"]

1. Nf3 {[%clk 0:02:59]}  d5 {[%clk 0:02:48]} 2. b3 {[%clk 0:02:59]}  c6 {[%clk 0:02:37]} 3. Bb2 {[%clk 0:03:00]}  Bf5 {[%clk 0:02:36]} 4. e3 {[%clk 0:02:59]}  h6 {[%clk 0:02:37]} 5. c4 {[%clk 0:02:59]}  Nf6 {[%clk 0:02:29]} 6. Nc3 {[%clk 0:02:58]}  e6 {[%clk 0:02:26]} 7. d4 {[%clk 0:02:56]}  Nbd7 {[%clk 0:02:27]} 8. Bd3 {[%clk 0:02:55]}  Bxd3 {[%clk 0:02:27]} 9. Qxd3 {[%clk 0:02:55]}  Bb4 {[%clk 0:02:14]} 10. O-O {[%clk 0:02:54]}  O-O {[%clk 0:02:13]} 11. a3 {[%clk 0:02:50]}  Bxc3 {[%clk 0:02:12]} 12. Bxc3 {[%clk 0:02:51]}  a5 {[%clk 0:02:06]} 13. Nd2 {[%clk 0:02:51]}  Qb6 {[%clk 0:01:43]} 14. b4 {[%clk 0:02:37]}  axb4 {[%clk 0:01:41]} 15. Bxb4 {[%clk 0:02:31]}  Rfc8 {[%clk 0:01:41]} 16. e4 {[%clk 0:02:31]}  Qa6 {[%clk 0:01:39]} 17. e5 {[%clk 0:02:29]}  Ne8 {[%clk 0:01:23]} 18. Qg3 {[%clk 0:02:20]}  Nb6 {[%clk 0:01:11]} 19. Rfc1 {[%clk 0:01:41]}  Nxc4 {[%clk 0:01:05]} 20. Rxc4 {[%clk 0:01:41]}  dxc4 {[%clk 0:01:04]} 21. Ne4 {[%clk 0:01:41]}  c5 {[%clk 0:00:55]} 22. dxc5 {[%clk 0:01:32]}  b6 {[%clk 0:00:52]} 23. Nd6 {[%clk 0:01:30]}  bxc5 {[%clk 0:00:44]} 24. Bc3 {[%clk 0:01:22]}  Rcb8 {[%clk 0:00:32]} 25. h4 {[%clk 0:01:17]} 1-0


[Site "https://www.chess.com"]